fUST/lending_fUST_20250910
["ID","MTS","AMOUNT","RATE_DAILY","PERIOD"]
[384634532,1757490651301,-480.0,0.00015068,2]
[384634534,1757490651311,-480.0,0.00015068,2]
[384634536,1757490651319,-83.89019979,0.00015068,2]
[384634538,1757490651332,-396.10980021,0.00015068,2]
[384634540,1757490651341,-480.0,0.00015068,2]
[384634542,1757490651351,-480.0,0.00015068,2]
[384634544,1757490651360,-151.96342007,0.00015068,2]
[384634546,1757490651369,-480.0,0.00015068,2]
[384634548,1757490651378,-480.0,0.00015068,2]
[384634551,1757490651388,-495.25,0.00015068,2]
[384634553,1757490651399,-342.72947528,0.00015068,2]
[384634555,1757490651415,-137.27052472,0.00015068,2]
[384634557,1757490651424,-193.53859519,0.00015068,2]
[384634559,1757490651433,-480.0,0.00015068,2]
[384634561,1757490651442,-1226.38,0.00015068,2]
[384634563,1757490651451,-480.0,0.00015068,2]
[384634565,1757490651460,-480.0,0.00015068,2]
[384634567,1757490651470,-480.0,0.00015068,2]
[384634569,1757490651480,-253.86938623,0.00015068,2]
[384636440,1757491131590,457.56301498,0.00013289,2]
[384636441,1757491131612,4542.43698502,0.00013289,2]
[384636450,1757491632120,-1644.0,0.0001345,2]
[384636451,1757491632142,-803.40523938,0.00013598,2]
[384636452,1757491816800,197.34254086,0.00025,60]
[384636499,1757491832505,-775.48690188,0.00013598,2]
[384636501,1757491832515,-155.0,0.00013697,2]
[384636503,1757491832525,-300.0,0.00013697,2]
[384636505,1757491832540,-437.33975097,0.00013698,2]
[384636507,1757491832550,-274.91136944,0.00013698,2]
[384636509,1757491832560,-480.0,0.00013698,2]
[384636513,1757491832571,-474.75949799,0.00013698,2]
[384636516,1757491832582,-207.61520257,0.00013698,2]
[384636558,1757491838192,-272.38479743,0.00013698,2]
[384636560,1757491838203,-480.0,0.00013698,2]
[384636562,1757491838212,-274.80326071,0.00013698,2]
[384636761,1757491840320,-205.19673929,0.00013698,2]
[384636763,1757491840330,-480.0,0.00013698,2]
[384636765,1757491840340,-154.24843558,0.00013698,2]
[384637121,1757491845849,-325.75156442,0.00013698,2]
[384637122,1757491845859,-480.0,0.00013698,2]
[384637123,1757491845868,-49.52843558,0.00013698,2]
[384637125,1757491845930,-430.47156442,0.00013698,2]
[384637126,1757491845939,-480.0,0.00013698,2]
[384637127,1757491845949,-480.0,0.00013698,2]
[384637128,1757491845958,-480.0,0.00013698,2]
[384637130,1757491845967,-480.0,0.00013698,2]
[384637131,1757491845977,-480.0,0.00013698,2]
[384637132,1757491845987,-480.0,0.00013698,2]
[384637134,1757491845997,-480.0,0.00013698,2]
[384637135,1757491846006,-479.3960093,0.00013698,2]
[384637136,1757491846016,-480.0,0.00013698,2]
[384637137,1757491846025,-483.20461728,0.00013698,2]
[384637138,1757491846034,-488.46869455,0.00013698,2]
[384637139,1757491846043,-480.0,0.00013698,2]
[384637140,1757491846053,-480.0,0.00013698,2]
[384637141,1757491846062,-480.0,0.00013698,2]
[384637142,1757491846071,-480.0,0.00013698,2]
[384637143,1757491846079,-480.0,0.00013698,2]
[384637144,1757491846089,-480.0,0.00013698,2]
[384637145,1757491846098,-664.34,0.00013698,2]
[384637146,1757491846107,-480.0,0.00013698,2]
[384637147,1757491846117,-480.0,0.00013698,2]
[384637148,1757491846126,-298.80817099,0.00013698,2]
[384637149,1757491846135,-480.0,0.00013698,2]
[384637150,1757491846144,-480.0,0.00013698,2]
[384637152,1757491846154,-480.0,0.00013698,2]
[384637154,1757491846164,-480.0,0.00013698,2]
[384637156,1757491846173,-480.0,0.00013698,2]
[384637157,1757491846182,-480.0,0.00013698,2]
[384637160,1757491846191,-480.0,0.00013698,2]
[384637161,1757491846201,-480.0,0.00013698,2]
[384637163,1757491846210,-480.0,0.00013698,2]
[384637166,1757491846220,-480.0,0.00013698,2]
[384637168,1757491846230,-480.0,0.00013698,2]
[384637170,1757491846239,-480.0,0.00013698,2]
[384637172,1757491846249,-480.0,0.00013698,2]
[384637174,1757491846259,-480.0,0.00013698,2]
[384637176,1757491846268,-431.63745301,0.00013698,2]
[384637177,1757491846277,-480.0,0.00013698,2]
[384637179,1757491846286,-480.0,0.00013698,2]
[384637181,1757491846295,-572.73,0.00013698,2]
[384637183,1757491846304,-480.0,0.00013698,2]
[384637185,1757491846314,-2910.57,0.00013698,2]
[384637188,1757491846323,-480.0,0.00013698,2]
[384637190,1757491846333,-480.0,0.00013698,2]
[384637191,1757491846342,-480.0,0.00013698,2]
[384637194,1757491846351,-480.0,0.00013698,2]
[384637196,1757491846361,-480.0,0.00013698,2]
[384637198,1757491846370,-1399.52,0.00013698,2]
[384637199,1757491846379,-480.0,0.00013698,2]
[384637201,1757491846389,-480.0,0.00013698,2]
[384637203,1757491846399,-480.0,0.00013698,2]
[384637206,1757491846408,-480.0,0.00013698,2]
[384637208,1757491846418,-582.02554439,0.00013698,2]
[384637211,1757491846427,-480.0,0.00013698,2]
[384637213,1757491846437,-529.16,0.00013698,2]
[384637216,1757491846446,-480.0,0.00013698,2]
[384637220,1757491846456,-480.0,0.00013698,2]
[384637223,1757491846465,-1212.47,0.00013698,2]
[384637225,1757491846475,-480.0,0.00013698,2]
[384637228,1757491846484,-480.0,0.00013698,2]
[384637231,1757491846493,-767.89,0.00013698,2]
[384637233,1757491846503,-6744.46,0.00013698,2]
[384637235,1757491846512,-515.47,0.00013698,2]
[384637237,1757491846522,-595.57,0.00013698,2]
[384637239,1757491846531,-480.0,0.00013698,2]
[384637241,1757491846541,-480.0,0.00013698,2]
[384637243,1757491846550,-480.0,0.00013698,2]
[384637246,1757491846560,-480.0,0.00013698,2]
[384637248,1757491846569,-480.0,0.00013698,2]
[384637250,1757491846579,-480.0,0.00013698,2]
[384637252,1757491846588,-622.59,0.00013698,2]
[384637254,1757491846598,-480.0,0.00013698,2]
[384637256,1757491846607,-540.84,0.00013698,2]
[384637258,1757491846617,-3671.82565547,0.00013698,2]
[384637260,1757491846627,-633.028059,0.00013699,2]
[384637261,1757491846636,-191.983128,0.00013699,2]
[384637264,1757491846646,-300.0,0.00013971,2]
[384637265,1757491846655,-300.0,0.00013971,2]
[384637268,1757491846665,-300.0,0.00013971,2]
[384637270,1757491846674,-300.0,0.00013971,2]
[384637272,1757491846683,-300.0,0.00013971,2]
[384637274,1757491846693,-300.0,0.00013971,2]
[384637276,1757491846702,-300.0,0.00013971,2]
[384637277,1757491846712,-300.0,0.00013971,2]
[384637279,1757491846721,-300.0,0.00013971,2]
[384637281,1757491846731,-300.0,0.00013971,2]
[384637283,1757491846741,-300.0,0.00013971,2]
[384637284,1757491846750,-300.0,0.00013971,2]
[384637285,1757491846759,-300.0,0.00013971,2]
[384637286,1757491846768,-300.0,0.00013971,2]
[384637287,1757491846777,-300.0,0.00013971,2]
[384637288,1757491846789,-600.0,0.00013971,2]
[384637289,1757491846799,-480.0,0.00013972,2]
[384637290,1757491846808,-345.20960712,0.00013972,2]
[384637291,1757491846818,-480.0,0.00013972,2]
[384637292,1757491846827,-480.0,0.00013972,2]
[384637293,1757491846838,-480.0,0.00013972,2]
[384637294,1757491846847,-480.0,0.00013972,2]
[384637295,1757491846856,-480.0,0.00013972,2]
[384637296,1757491846866,-480.0,0.00013972,2]
[384637297,1757491846876,-480.0,0.00013972,2]
[384637298,1757491846885,-480.0,0.00013972,2]
[384637299,1757491846894,-480.0,0.00013972,2]
[384637300,1757491846904,-480.0,0.00013972,2]
[384637301,1757491846913,-397.13102524,0.00013972,2]
[384637302,1757491846922,-480.0,0.00013972,2]
[384637303,1757491846931,-480.0,0.00013972,2]
[384637304,1757491846942,-480.0,0.00013972,2]
[384637305,1757491846951,-480.0,0.00013972,2]
[384637306,1757491846960,-392.16479748,0.00013972,2]
[384637307,1757491846969,-480.0,0.00013972,2]
[384637308,1757491846978,-413.25806754,0.00013972,2]
[384637309,1757491846988,-480.0,0.00013972,2]
[384637310,1757491846998,-664.34,0.00013972,2]
[384637311,1757491847007,-480.0,0.00013972,2]
[384637312,1757491847017,-480.0,0.00013972,2]
[384637313,1757491847027,-480.0,0.00013972,2]
[384637314,1757491847036,-480.0,0.00013972,2]
[384637315,1757491847045,-480.0,0.00013972,2]
[384637316,1757491847055,-480.0,0.00013972,2]
[384637317,1757491847064,-480.0,0.00013972,2]
[384637318,1757491847074,-480.0,0.00013972,2]
[384637319,1757491847083,-480.0,0.00013972,2]
[384637320,1757491847093,-480.0,0.00013972,2]
[384637321,1757491847102,-480.0,0.00013972,2]
[384637322,1757491847111,-480.0,0.00013972,2]
[384637323,1757491847121,-480.0,0.00013972,2]
[384637324,1757491847131,-480.0,0.00013972,2]
[384637325,1757491847141,-480.0,0.00013972,2]
[384637326,1757491847150,-480.0,0.00013972,2]
[384637327,1757491847159,-480.0,0.00013972,2]
[384637328,1757491847169,-572.73,0.00013972,2]
[384637329,1757491847178,-480.0,0.00013972,2]
[384637330,1757491847188,-2910.57,0.00013972,2]
[384637331,1757491847198,-480.0,0.00013972,2]
[384637332,1757491847207,-480.0,0.00013972,2]
[384637333,1757491847217,-480.0,0.00013972,2]
[384637334,1757491847226,-480.0,0.00013972,2]
[384637335,1757491847235,-480.0,0.00013972,2]
[384637336,1757491847245,-1399.52,0.00013972,2]
[384637337,1757491847254,-480.0,0.00013972,2]
[384637338,1757491847263,-480.0,0.00013972,2]
[384637339,1757491847273,-480.0,0.00013972,2]
[384637340,1757491847283,-480.0,0.00013972,2]
[384637341,1757491847292,-529.16,0.00013972,2]
[384637342,1757491847301,-480.0,0.00013972,2]
[384637343,1757491847310,-319.23024668,0.00013972,2]
[384637344,1757491847320,-1212.47,0.00013972,2]
[384637345,1757491847329,-480.0,0.00013972,2]
[384637346,1757491847339,-480.0,0.00013972,2]
[384637347,1757491847348,-767.89,0.00013972,2]
[384637348,1757491847357,-6744.46,0.00013972,2]
[384637349,1757491847367,-515.47,0.00013972,2]
[384637350,1757491847377,-595.57,0.00013972,2]
[384637351,1757491847386,-480.0,0.00013972,2]
[384637352,1757491847396,-480.0,0.00013972,2]
[384637353,1757491847405,-480.0,0.00013972,2]
[384637354,1757491847415,-480.0,0.00013972,2]
[384637355,1757491847425,-480.0,0.00013972,2]
[384637356,1757491847435,-622.59,0.00013972,2]
[384637357,1757491847444,-480.0,0.00013972,2]
[384637358,1757491847454,-540.84,0.00013972,2]
[384637359,1757491847463,-150.169,0.00014109,2]
[384637360,1757491847473,-409.0,0.00014114,2]
[384637361,1757491847482,-960.528,0.00014136,2]
[384637362,1757491847491,-208.21238746,0.00014146,2]
[384637363,1757491847501,-266.18409693,0.00014246,2]
[384637364,1757491847510,-480.0,0.00014246,2]
[384637365,1757491847519,-480.0,0.00014246,2]
[384637366,1757491847529,-480.0,0.00014246,2]
[384637367,1757491847539,-515.11120518,0.00014246,2]
[384637368,1757491847548,-151.408,0.00014246,2]
[384637369,1757491847558,-480.0,0.00014246,2]
[384637370,1757491847567,-415.06448609,0.00014246,2]
[384637371,1757491847577,-480.0,0.00014246,2]
[384637372,1757491847586,-480.0,0.00014246,2]
[384637373,1757491847595,-480.0,0.00014246,2]
[384637374,1757491847604,-480.0,0.00014246,2]
[384637375,1757491847613,-480.0,0.00014246,2]
[384637376,1757491847623,-480.0,0.00014246,2]
[384637377,1757491847633,-480.0,0.00014246,2]
[384637378,1757491847642,-480.0,0.00014246,2]
[384637379,1757491847651,-480.0,0.00014246,2]
[384637380,1757491847661,-480.0,0.00014246,2]
[384637381,1757491847671,-664.34,0.00014246,2]
[384637382,1757491847680,-480.0,0.00014246,2]
[384637383,1757491847689,-480.0,0.00014246,2]
[384637384,1757491847699,-480.0,0.00014246,2]
[384637385,1757491847708,-480.0,0.00014246,2]
[384637386,1757491847717,-480.0,0.00014246,2]
[384637387,1757491847727,-480.0,0.00014246,2]
[384637388,1757491847736,-480.0,0.00014246,2]
[384637389,1757491847746,-480.0,0.00014246,2]
[384637390,1757491847755,-480.0,0.00014246,2]
[384637391,1757491847765,-480.0,0.00014246,2]
[384637392,1757491847774,-480.0,0.00014246,2]
[384637393,1757491847786,-316.08,0.00014246,2]
[384637394,1757491847797,-480.0,0.00014246,2]
[384637395,1757491847806,-480.0,0.00014246,2]
[384637396,1757491847815,-480.0,0.00014246,2]
[384637397,1757491847824,-480.0,0.00014246,2]
[384637398,1757491847834,-572.73,0.00014246,2]
[384637399,1757491847843,-2910.57,0.00014246,2]
[384637400,1757491847852,-480.0,0.00014246,2]
[384637401,1757491847862,-480.0,0.00014246,2]
[384637402,1757491847871,-480.0,0.00014246,2]
[384637403,1757491847880,-480.0,0.00014246,2]
[384637404,1757491847890,-480.0,0.00014246,2]
[384637405,1757491847899,-480.0,0.00014246,2]
[384637406,1757491847909,-1399.52,0.00014246,2]
[384637407,1757491847919,-480.0,0.00014246,2]
[384637408,1757491847929,-480.0,0.00014246,2]
[384637409,1757491847939,-480.0,0.00014246,2]
[384637410,1757491847949,-480.0,0.00014246,2]
[384637411,1757491847958,-480.0,0.00014246,2]
[384637412,1757491847968,-529.16,0.00014246,2]
[384637413,1757491847978,-1212.47,0.00014246,2]
[384637414,1757491847988,-480.0,0.00014246,2]
[384637415,1757491847998,-767.89,0.00014246,2]
[384637416,1757491848007,-6744.46,0.00014246,2]
[384637417,1757491848017,-515.47,0.00014246,2]
[384637418,1757491848027,-595.57,0.00014246,2]
[384637419,1757491848036,-480.0,0.00014246,2]
[384637420,1757491848046,-480.0,0.00014246,2]
[384637421,1757491848056,-566.04416757,0.00014246,2]
[384637422,1757491848066,-480.0,0.00014246,2]
[384637423,1757491848076,-480.0,0.00014246,2]
[384637424,1757491848086,-622.59,0.00014246,2]
[384637425,1757491848096,-480.0,0.00014246,2]
[384637426,1757491848105,-540.84,0.00014246,2]
[384637427,1757491848115,-530.87637315,0.00014458,2]
[384637428,1757491848125,-217.67150996,0.00014458,2]
[384637429,1757491848135,-846.88337432,0.00014458,2]
[384637430,1757491848145,-417.15472785,0.00014458,2]
[384637431,1757491848155,-203.30414021,0.00014458,2]
[384637432,1757491848165,-160.0,0.00014458,2]
[384637433,1757491848175,-160.0,0.00014458,2]
[384637434,1757491848185,-233.08191698,0.00014458,2]
[384637435,1757491848195,-160.0,0.00014458,2]
[384637436,1757491848205,-480.0,0.0001452,2]
[384637437,1757491848214,-480.0,0.0001452,2]
[384637438,1757491848224,-480.0,0.0001452,2]
[384637439,1757491848234,-383.11055727,0.0001452,2]
[384637440,1757491848244,-480.0,0.0001452,2]
[384637441,1757491848253,-480.0,0.0001452,2]
[384637442,1757491848263,-480.0,0.0001452,2]
[384637443,1757491848272,-480.0,0.0001452,2]
[384637444,1757491848282,-480.0,0.0001452,2]
[384637445,1757491848291,-480.0,0.0001452,2]
[384637446,1757491848301,-480.0,0.0001452,2]
[384637447,1757491848310,-480.0,0.0001452,2]
[384637448,1757491848320,-480.0,0.0001452,2]
[384637449,1757491848330,-480.0,0.0001452,2]
[384637450,1757491848340,-664.34,0.0001452,2]
[384637451,1757491848349,-480.0,0.0001452,2]
[384637452,1757491848359,-480.0,0.0001452,2]
[384637453,1757491848368,-480.0,0.0001452,2]
[384637454,1757491848378,-187.55080197,0.0001452,2]
[384637455,1757491848388,-592.31,0.0001452,2]
[384637456,1757491848398,-480.0,0.0001452,2]
[384637457,1757491848407,-480.0,0.0001452,2]
[384637458,1757491848418,-480.0,0.0001452,2]
[384637459,1757491848428,-480.0,0.0001452,2]
[384637460,1757491848437,-480.0,0.0001452,2]
[384637461,1757491848447,-480.0,0.0001452,2]
[384637462,1757491848577,-480.0,0.0001452,2]
[384637463,1757491848588,-480.0,0.0001452,2]
[384637464,1757491848598,-572.73,0.0001452,2]
[384637465,1757491848608,-2910.57,0.0001452,2]
[384637466,1757491848619,-480.0,0.0001452,2]
[384637467,1757491848628,-480.0,0.0001452,2]
[384637468,1757491848638,-480.0,0.0001452,2]
[384637469,1757491848648,-480.0,0.0001452,2]
[384637470,1757491848659,-480.0,0.0001452,2]
[384637471,1757491848669,-480.0,0.0001452,2]
[384637472,1757491848678,-1399.52,0.0001452,2]
[384637473,1757491848688,-480.0,0.0001452,2]
[384637474,1757491848698,-480.0,0.0001452,2]
[384637475,1757491848708,-480.0,0.0001452,2]
[384637476,1757491848717,-480.0,0.0001452,2]
[384637477,1757491848726,-529.16,0.0001452,2]
[384637478,1757491848736,-1212.47,0.0001452,2]
[384637479,1757491848747,-767.89,0.0001452,2]
[384637480,1757491848757,-6744.46,0.0001452,2]
[384637481,1757491848767,-515.47,0.0001452,2]
[384637482,1757491848777,-595.57,0.0001452,2]
[384637483,1757491848789,-480.0,0.0001452,2]
[384637484,1757491848799,-480.0,0.0001452,2]
[384637485,1757491848809,-480.0,0.0001452,2]
[384637486,1757491848820,-480.0,0.0001452,2]
[384637487,1757491848831,-622.59,0.0001452,2]
[384637488,1757491848840,-480.0,0.0001452,2]
[384637489,1757491848851,-540.84,0.0001452,2]
[384637490,1757491848860,-500.0,0.00014694,2]
[384637491,1757491848872,-500.0,0.00014694,2]
[384637492,1757491848882,-20931.26794319,0.000147,2]
[384637493,1757491848999,-480.0,0.00013698,2]
[384637494,1757491849010,-480.0,0.00013972,2]
[384637495,1757491849019,-380.61019757,0.000147,2]
[384637496,1757491849031,-541076.07228174,0.000147,2]
[384637497,1757491849041,-500.0,0.00014708,2]
[384637498,1757491849051,-500.0,0.00014708,2]
[384637499,1757491849061,-500.0,0.00014736,2]
[384637500,1757491849070,-500.0,0.00014736,2]
[384637501,1757491849080,-471.16468916,0.00014736,2]
[384637502,1757491849089,-550.29692927,0.00014736,2]
[384637503,1757491849099,-469.75699858,0.00014736,2]
[384637504,1757491849108,-500.0,0.00014736,2]
[384637505,1757491849118,-500.0,0.00014737,2]
[384637506,1757491849127,-500.91413569,0.00014737,2]
[384637507,1757491849137,-500.0,0.00014751,2]
[384637508,1757491849146,-152.03115755,0.00014793,2]
[384637509,1757491849156,-186.90146657,0.00014793,2]
[384637510,1757491849166,-450.59,0.00014794,2]
[384637511,1757491849176,-480.0,0.00014794,2]
[384637512,1757491849187,-206.72,0.00014794,2]
[384637513,1757491849196,-480.0,0.00014794,2]
[384637514,1757491849206,-480.0,0.00014794,2]
[384637515,1757491849215,-530.1432,0.00014794,2]
[384637516,1757491849225,-480.0,0.00014794,2]
[384637517,1757491849235,-664.34,0.00014794,2]
[384637518,1757491849244,-480.0,0.00014794,2]
[384637519,1757491849253,-501.62,0.00014794,2]
[384637520,1757491849263,-369.16,0.00014794,2]
[384637521,1757491849273,-480.0,0.00014794,2]
[384637522,1757491849283,-480.0,0.00014794,2]
[384637523,1757491849292,-480.0,0.00014794,2]
[384637524,1757491849302,-572.73,0.00014794,2]
[384637525,1757491849312,-2910.57,0.00014794,2]
[384637526,1757491849322,-480.0,0.00014794,2]
[384637527,1757491849332,-480.0,0.00014794,2]
[384637528,1757491849342,-480.0,0.00014794,2]
[384637529,1757491849352,-480.0,0.00014794,2]
[384637530,1757491849362,-480.0,0.00014794,2]
[384637531,1757491849371,-1399.52,0.00014794,2]
[384637532,1757491849381,-480.0,0.00014794,2]
[384637533,1757491849390,-480.0,0.00014794,2]
[384637534,1757491849400,-480.0,0.00014794,2]
[384637535,1757491849410,-529.16,0.00014794,2]
[384637536,1757491849420,-1212.47,0.00014794,2]
[384637537,1757491849430,-767.89,0.00014794,2]
[384637538,1757491849439,-6744.46,0.00014794,2]
[384637539,1757491849448,-515.47,0.00014794,2]
[384637540,1757491849458,-595.57,0.00014794,2]
[384637541,1757491849467,-480.0,0.00014794,2]
[384637542,1757491849478,-480.0,0.00014794,2]
[384637543,1757491849488,-480.0,0.00014794,2]
[384637544,1757491849498,-480.0,0.00014794,2]
[384637545,1757491849509,-622.59,0.00014794,2]
[384637546,1757491849518,-540.84,0.00014794,2]
[384637547,1757491849528,-151.22245785,0.000148,2]
[384637548,1757491849538,-500.0,0.000148,2]
[384637549,1757491849547,-500.0,0.000148,2]
[384637550,1757491849557,-500.0,0.000148,2]
[384637551,1757491849567,-500.0,0.000148,2]
[384637552,1757491849576,-500.0,0.000148,2]
[384637553,1757491849586,-500.0,0.000148,2]
[384637554,1757491849595,-500.0,0.00014891,2]
[384637555,1757491849605,-500.0,0.00014891,2]
[384637556,1757491849614,-5812.7911634,0.00014962,2]
[384637557,1757491849624,-3670.6226904,0.00014962,2]
[384637558,1757491849634,-3083.3214302,0.00014962,2]
[384637559,1757491849645,-28363.63745265,0.00014968,2]
[384637560,1757491849655,-208.21238746,0.00014968,2]
[384637561,1757491849665,-160.0,0.00015,2]
[384637562,1757491849685,-420.0,0.0001501,2]
[384637563,1757491849696,-155.0,0.00015067,2]
[384637564,1757491849707,-150.0,0.00015068,2]
[384637565,1757491849717,-157.0,0.00015068,2]
[384637566,1757491849727,-186.0,0.00015068,2]
[384637567,1757491849737,-511.74790592,0.00015068,2]
[384637568,1757491849747,-480.0,0.00015068,2]
[384637569,1757491849756,-480.0,0.00015068,2]
[384637570,1757491849766,-1304.0,0.00015068,2]
[384637571,1757491849776,-1304.0,0.00015068,2]
[384637572,1757491849786,-1304.0,0.00015068,2]
[384637573,1757491849798,-1304.0,0.00015068,2]
[384637574,1757491849808,-1304.0,0.00015068,2]
[384637575,1757491849818,-1304.0,0.00015068,2]
[384637576,1757491849828,-1434.83621197,0.00015068,2]
[384637577,1757491849839,-480.0,0.00015068,2]
[384637578,1757491849849,-664.34,0.00015068,2]
[384637579,1757491849859,-270.05,0.00015068,2]
[384637580,1757491849869,-500.0,0.00015068,2]
[384637581,1757491849879,-480.0,0.00015068,2]
[384637582,1757491849889,-480.0,0.00015068,2]
[384637583,1757491849899,-480.0,0.00015068,2]
[384637584,1757491849910,-572.73,0.00015068,2]
[384637585,1757491849921,-480.0,0.00015068,2]
[384637586,1757491849931,-2910.57,0.00015068,2]
[384637587,1757491849941,-480.0,0.00015068,2]
[384637588,1757491849950,-480.0,0.00015068,2]
[384637589,1757491849961,-480.0,0.00015068,2]
[384637590,1757491849971,-480.0,0.00015068,2]
[384637591,1757491849981,-1399.52,0.00015068,2]
[384637592,1757491849991,-480.0,0.00015068,2]
[384637593,1757491850000,-480.0,0.00015068,2]
[384637594,1757491850011,-480.0,0.00015068,2]
[384637595,1757491850021,-529.16,0.00015068,2]
[384637596,1757491850031,-1212.47,0.00015068,2]
[384637597,1757491850042,-767.89,0.00015068,2]
[384637598,1757491850052,-6744.46,0.00015068,2]
[384637599,1757491850062,-515.47,0.00015068,2]
[384637600,1757491850072,-595.57,0.00015068,2]
[384637601,1757491850081,-480.0,0.00015068,2]
[384637602,1757491850091,-480.0,0.00015068,2]
[384637603,1757491850101,-1304.0,0.00015068,2]
[384637604,1757491850112,-480.0,0.00015068,2]
[384637605,1757491850122,-480.0,0.00015068,2]
[384637606,1757491850132,-622.59,0.00015068,2]
[384637607,1757491850142,-540.84,0.00015068,2]
[384637608,1757491850151,-661.670401,0.00015068,2]
[384637609,1757491850162,-500.0,0.00015068,2]
[384637610,1757491850172,-168.0,0.00015098,2]
[384637611,1757491850182,-168.0,0.00015132,2]
[384637612,1757491850192,-168.0,0.00015161,2]
[384637613,1757491850202,-500.0,0.00015173,2]
[384637614,1757491850211,-1000.0,0.00015242,2]
[384637615,1757491850221,-368.50008519,0.00015242,2]
[384637616,1757491850231,-2102.56,0.00015242,2]
[384637617,1757491850240,-4414.42409246,0.00015242,2]
[384637618,1757491850251,-1000.0,0.00015256,2]
[384637619,1757491850262,-1000.0,0.00015256,2]
[384637620,1757491850272,-1000.0,0.00015284,2]
[384637621,1757491850281,-208.46421342,0.00015342,2]
[384637622,1757491850291,-500.0,0.00015342,2]
[384637623,1757491850300,-155.61138132,0.00015342,2]
[384637624,1757491850309,-265.69585767,0.00015342,2]
[384637625,1757491850320,-480.0,0.00015342,2]
[384637626,1757491850329,-664.34,0.00015342,2]
[384637627,1757491850339,-480.0,0.00015342,2]
[384637628,1757491850349,-541.87,0.00015342,2]
[384637629,1757491850359,-480.0,0.00015342,2]
[384637630,1757491850369,-572.73,0.00015342,2]
[384637631,1757491850378,-480.0,0.00015342,2]
[384637632,1757491850388,-2910.57,0.00015342,2]
[384637633,1757491850397,-480.0,0.00015342,2]
[384637634,1757491850408,-304.81,0.00015342,2]
[384637635,1757491850419,-480.0,0.00015342,2]
[384637636,1757491850431,-480.0,0.00015342,2]
[384637637,1757491850441,-1399.52,0.00015342,2]
[384637638,1757491850451,-480.0,0.00015342,2]
[384637639,1757491850460,-236.19733502,0.00015342,2]
[384637640,1757491850470,-480.0,0.00015342,2]
[384637641,1757491850480,-529.16,0.00015342,2]
[384637642,1757491850489,-1212.47,0.00015342,2]
[384637643,1757491850499,-767.89,0.00015342,2]
[384637644,1757491850510,-6744.46,0.00015342,2]
[384637645,1757491850519,-515.47,0.00015342,2]
[384637646,1757491850529,-595.57,0.00015342,2]
[384637647,1757491850539,-480.0,0.00015342,2]
[384637648,1757491850548,-271.94,0.00015342,2]
[384637649,1757491850564,-480.0,0.00015342,2]
[384637650,1757491850574,-480.0,0.00015342,2]
[384637651,1757491850584,-622.59,0.00015342,2]
[384637652,1757491850593,-540.84,0.00015342,2]
[384637653,1757491850603,-1000.0,0.00015348,2]
[384637654,1757491850613,-1000.0,0.00015348,2]
[384637655,1757491850623,-1000.0,0.00015348,2]